fUST/lending_fUST_20260417
["ID","MTS","AMOUNT","RATE_DAILY","PERIOD"]
[420631578,1776379840777,-500.0,8.219e-05,2]
[420631579,1776379840789,-574.58121684,8.219e-05,2]
[420631580,1776379840800,-500.0,8.219e-05,2]
[420631581,1776379840810,-500.0,8.219e-05,2]
[420631582,1776379840819,-1787.22,8.219e-05,2]
[420631583,1776379840830,-500.0,8.219e-05,2]
[420631584,1776379840840,-500.0,8.219e-05,2]
[420631585,1776379840849,-500.0,8.219e-05,2]
[420631586,1776379840859,-507.02842082,8.219e-05,2]
[420631587,1776379840870,-500.85064786,8.219e-05,2]
[420631588,1776379840881,-507.63,8.219e-05,2]
[420631589,1776379840891,-500.0,8.219e-05,2]
[420631590,1776379840902,-500.0,8.219e-05,2]
[420631591,1776379840911,-500.0,8.219e-05,2]
[420631592,1776379840922,-500.0,8.219e-05,2]
[420631593,1776379840932,-500.0,8.219e-05,2]
[420631594,1776379840942,-500.0,8.219e-05,2]
[420631595,1776379840953,-539.21,8.219e-05,2]
[420631596,1776379840963,-500.0,8.219e-05,2]
[420631597,1776379840973,-500.0,8.219e-05,2]
[420631598,1776379840982,-500.0,8.219e-05,2]
[420631599,1776379840993,-500.0,8.219e-05,2]
[420631600,1776379841003,-500.0,8.219e-05,2]
[420631601,1776379841013,-500.0,8.219e-05,2]
[420631602,1776379841023,-1620.52,8.219e-05,2]
[420631603,1776379841034,-656.01,8.219e-05,2]
[420631604,1776379841044,-500.0,8.219e-05,2]
[420631605,1776379841054,-500.0,8.219e-05,2]
[420631606,1776379841065,-500.0,8.219e-05,2]
[420631607,1776379841075,-500.0,8.219e-05,2]
[420631608,1776379841086,-500.0,8.219e-05,2]
[420631609,1776379841096,-523.22778256,8.219e-05,2]
[420631610,1776379841106,-500.0,8.219e-05,2]
[420631611,1776379841116,-500.0,8.219e-05,2]
[420631612,1776379841126,-500.0,8.219e-05,2]
[420631613,1776379841137,-500.0,8.219e-05,2]
[420631614,1776379841147,-500.0,8.219e-05,2]
[420631615,1776379841157,-1701.43,8.219e-05,2]
[420631616,1776379841166,-500.0,8.219e-05,2]
[420631617,1776379841178,-500.0,8.219e-05,2]
[420631618,1776379841189,-500.0,8.219e-05,2]
[420631619,1776379841199,-500.60891618,8.219e-05,2]
[420631620,1776379841209,-500.0,8.219e-05,2]
[420631621,1776379841218,-500.0,8.219e-05,2]
[420631622,1776379841227,-500.0,8.219e-05,2]
[420631623,1776379841236,-500.0,8.219e-05,2]
[420631624,1776379841246,-621.1767188,8.219e-05,2]
[420631625,1776379841255,-500.0,8.219e-05,2]
[420631626,1776379841265,-500.0,8.219e-05,2]
[420631627,1776379841275,-500.0,8.219e-05,2]
[420631628,1776379841285,-500.0,8.219e-05,2]
[420631629,1776379841295,-501.29880181,8.219e-05,2]
[420631630,1776379841305,-500.0,8.219e-05,2]
[420631631,1776379841315,-500.0,8.219e-05,2]
[420631632,1776379841325,-500.0,8.219e-05,2]
[420631633,1776379841334,-500.0,8.219e-05,2]
[420631634,1776379841344,-2596.25,8.219e-05,2]
[420631635,1776379841353,-630.64,8.219e-05,2]
[420631636,1776379841364,-670.87,8.219e-05,2]
[420631637,1776379841374,-6535.98,8.219e-05,2]
[420631638,1776379841384,-500.0,8.219e-05,2]
[420631639,1776379841393,-500.0,8.219e-05,2]
[420631640,1776379841402,-516.50233141,8.219e-05,2]
[420631641,1776379841412,-500.0,8.219e-05,2]
[420631642,1776379841422,-1441.11,8.219e-05,2]
[420631643,1776379841431,-500.0,8.219e-05,2]
[420631644,1776379841441,-500.0,8.219e-05,2]
[420631645,1776379841451,-500.0,8.219e-05,2]
[420631646,1776379841461,-500.0,8.219e-05,2]
[420631647,1776379841470,-515.7489057,8.219e-05,2]
[420631648,1776379841480,-1717.31,8.219e-05,2]
[420631649,1776379841489,-500.0,8.219e-05,2]
[420631650,1776379841499,-500.0,8.219e-05,2]
[420631651,1776379841508,-500.0,8.219e-05,2]
[420631652,1776379841518,-500.0,8.219e-05,2]
[420631653,1776379841530,-6460.19,8.219e-05,2]
[420631654,1776379841540,-500.0,8.219e-05,2]
[420631655,1776379841551,-500.0,8.219e-05,2]
[420631656,1776379841560,-500.0,8.219e-05,2]
[420631657,1776379841573,-1128.86,8.219e-05,2]
[420631658,1776379841585,-500.0,8.219e-05,2]
[420631659,1776379841596,-500.0,8.219e-05,2]
[420631660,1776379841607,-500.0,8.219e-05,2]
[420631661,1776379841617,-500.0,8.219e-05,2]
[420631662,1776379841626,-500.0,8.219e-05,2]
[420631663,1776379841636,-897.63,8.219e-05,2]
[420631664,1776379841646,-6057.27,8.219e-05,2]
[420631665,1776379841655,-5681.95,8.219e-05,2]
[420631666,1776379841665,-500.0,8.219e-05,2]
[420631667,1776379841674,-500.0,8.219e-05,2]
[420631668,1776379841684,-500.0,8.219e-05,2]
[420631669,1776379841693,-1054.52,8.219e-05,2]
[420631670,1776379841702,-500.0,8.219e-05,2]
[420631671,1776379841712,-3140.75,8.219e-05,2]
[420631672,1776379841721,-151.0,8.219e-05,2]
[420631673,1776379841732,-203.596297,8.219e-05,2]
[420631674,1776379841742,-500.0,8.219e-05,2]
[420631675,1776379841751,-2344.9,8.219e-05,2]
[420631676,1776379841760,-500.0,8.219e-05,2]
[420631677,1776379841770,-1726.65,8.219e-05,2]
[420631678,1776379841943,-1260.1,8.219e-05,2]
[420631679,1776379841953,-500.0,8.219e-05,2]
[420631680,1776379841963,-3731.78,8.219e-05,2]
[420631681,1776379841972,-500.0,8.219e-05,2]
[420631682,1776379841982,-194.36672979,8.219e-05,2]
[420631683,1776379841992,-500.0,8.219e-05,2]
[420631684,1776379842002,-500.0,8.219e-05,2]
[420631685,1776379842011,-163.83909932,8.219e-05,2]
[420631686,1776379842021,-261.46984455,8.219e-05,2]
[420631687,1776379842030,-500.0,8.219e-05,2]
[420631688,1776379842040,-500.0,8.219e-05,2]
[420631689,1776379842050,-500.0,8.219e-05,2]
[420631690,1776379842059,-1264.24,8.219e-05,2]
[420631691,1776379842069,-780.29,8.219e-05,2]
[420631692,1776379842079,-2395.79,8.219e-05,2]
[420631693,1776379842088,-500.0,8.219e-05,2]
[420631694,1776379842098,-500.0,8.219e-05,2]
[420631695,1776379842108,-500.0,8.219e-05,2]
[420631696,1776379842117,-216.33511177,8.219e-05,2]
[420631697,1776379842127,-1736.03,8.219e-05,2]
[420631698,1776379842136,-500.0,8.219e-05,2]
[420631699,1776379842145,-500.0,8.219e-05,2]
[420631700,1776379842155,-500.0,8.219e-05,2]
[420631701,1776379842165,-500.0,8.219e-05,2]
[420631702,1776379842174,-674.91,8.219e-05,2]
[420631703,1776379842184,-500.0,8.219e-05,2]
[420631704,1776379842194,-500.0,8.219e-05,2]
[420631705,1776379842203,-741.33,8.219e-05,2]
[420631706,1776379842213,-4872.5,8.219e-05,2]
[420631707,1776379842223,-500.0,8.219e-05,2]
[420631708,1776379842232,-500.0,8.219e-05,2]
[420631709,1776379842242,-500.0,8.219e-05,2]
[420631710,1776379842251,-500.0,8.219e-05,2]
[420631711,1776379842260,-500.0,8.219e-05,2]
[420631712,1776379842270,-500.0,8.219e-05,2]
[420631713,1776379842279,-5809.96,8.219e-05,2]
[420631714,1776379842289,-3178.98,8.219e-05,2]
[420631715,1776379842298,-2921.38,8.219e-05,2]
[420631716,1776379842307,-500.0,8.219e-05,2]
[420631717,1776379842316,-500.0,8.219e-05,2]
[420631718,1776379842325,-289.79082302,8.219e-05,2]
[420631719,1776379842336,-1109.48,8.219e-05,2]
[420631720,1776379842345,-582.02,8.219e-05,2]
[420631721,1776379842355,-500.0,8.219e-05,2]
[420631722,1776379842364,-6778.55,8.219e-05,2]
[420631723,1776379842373,-500.0,8.219e-05,2]
[420631725,1776379842382,-500.0,8.219e-05,2]
[420631727,1776379842391,-278.39625567,8.219e-05,2]
[420631729,1776379842400,-500.0,8.219e-05,2]
[420631730,1776379842409,-23515.02,8.219e-05,2]
[420631731,1776379842418,-500.0,8.219e-05,2]
[420631732,1776379842428,-805.01,8.219e-05,2]
[420631734,1776379842437,-500.0,8.219e-05,2]
[420631736,1776379842447,-500.0,8.219e-05,2]
[420631738,1776379842456,-981.28,8.219e-05,2]
[420631740,1776379842466,-4908.13,8.219e-05,2]
[420631741,1776379842475,-6786.81,8.219e-05,2]
[420631742,1776379842484,-508.84839959,8.219e-05,2]
[420631744,1776379842494,-1911.03,8.219e-05,2]
[420631746,1776379842504,-500.0,8.219e-05,2]
[420631748,1776379842513,-500.0,8.219e-05,2]
[420631750,1776379842524,-2017.96,8.219e-05,2]
[420631753,1776379842533,-1413.17,8.219e-05,2]
[420631755,1776379842542,-13094.77,8.219e-05,2]
[420631756,1776379842551,-500.0,8.219e-05,2]
[420631757,1776379842560,-500.0,8.219e-05,2]
[420631759,1776379842570,-2398.76,8.219e-05,2]
[420631761,1776379842579,-500.0,8.219e-05,2]
[420631763,1776379842588,-642.71,8.219e-05,2]
[420631765,1776379842598,-500.0,8.219e-05,2]
[420631767,1776379842607,-500.0,8.219e-05,2]
[420631769,1776379842616,-710.49,8.219e-05,2]
[420631770,1776379842625,-500.0,8.219e-05,2]
[420631771,1776379842634,-500.0,8.219e-05,2]
[420631772,1776379842643,-500.0,8.219e-05,2]
[420631773,1776379842654,-511.84946887,8.219e-05,2]
[420631775,1776379842663,-500.0,8.219e-05,2]
[420631777,1776379842673,-7538.86,8.219e-05,2]
[420631779,1776379842683,-606.0,8.219e-05,2]
[420631781,1776379842692,-620.21,8.219e-05,2]
[420631783,1776379842702,-500.0,8.219e-05,2]
[420631786,1776379842711,-7051.8,8.219e-05,2]
[420631787,1776379842720,-500.0,8.219e-05,2]
[420631789,1776379842729,-840.84,8.219e-05,2]
[420631791,1776379842739,-500.0,8.219e-05,2]
[420631794,1776379842750,-725.79,8.219e-05,2]
[420631796,1776379842760,-1458.06,8.219e-05,2]
[420631799,1776379842769,-453.35768776,8.219e-05,2]
[420631801,1776379842778,-500.0,8.219e-05,2]
[420631803,1776379842787,-779.557,8.229e-05,2]
[420631804,1776379842796,-1408.0,8.229e-05,2]
[420631805,1776379842806,-2208.0,8.229e-05,2]
[420631806,1776379842816,-300.0,8.253e-05,2]
[420631808,1776379842825,-300.0,8.253e-05,2]
[420631810,1776379842835,-500.0,8.3e-05,2]
[420631811,1776379842843,-557.5788265,8.329e-05,2]
[420631812,1776379842854,-2230.315306,8.329e-05,2]
[420631813,1776379842864,-382.64500388,8.329e-05,2]
[420631814,1776379842874,-150.0,8.352e-05,2]
[420631815,1776379842883,-155.0,8.382e-05,2]
[420631816,1776379842892,-382.03082887,8.451e-05,2]
[420631817,1776379842902,-1216.485881,8.47e-05,2]
[420631818,1776379842912,-675.9496096,8.487e-05,2]
[420631819,1776379842923,-1502.6604839,8.487e-05,2]
[420631820,1776379842932,-1231.5582,8.493e-05,2]
[420631821,1776379842941,-500.0,8.493e-05,2]
[420631822,1776379842951,-761.53702131,8.493e-05,2]
[420631823,1776379842960,-500.0,8.493e-05,2]
[420631824,1776379842970,-500.0,8.493e-05,2]
[420631825,1776379842979,-500.0,8.493e-05,2]
[420631827,1776379842989,-500.0,8.493e-05,2]
[420631828,1776379842998,-500.0,8.493e-05,2]
[420631829,1776379843007,-501.74118153,8.493e-05,2]
[420631830,1776379843016,-500.0,8.493e-05,2]
[420631831,1776379843026,-500.0,8.493e-05,2]
[420631833,1776379843035,-775.34,8.493e-05,2]
[420631834,1776379843045,-500.0,8.493e-05,2]
[420631836,1776379843055,-508.91499492,8.493e-05,2]
[420631838,1776379843064,-500.0,8.493e-05,2]
[420631839,1776379843073,-500.0,8.493e-05,2]
[420631840,1776379843083,-848.68,8.493e-05,2]
[420631842,1776379843093,-500.0,8.493e-05,2]
[420631844,1776379843102,-500.0,8.493e-05,2]
[420631845,1776379843112,-500.0,8.493e-05,2]
[420631846,1776379843123,-500.55424306,8.493e-05,2]
[420631847,1776379843133,-500.0,8.493e-05,2]
[420631848,1776379843142,-500.0,8.493e-05,2]
[420631849,1776379843151,-500.0,8.493e-05,2]
[420631850,1776379843160,-500.0,8.493e-05,2]
[420631851,1776379843170,-1014.43,8.493e-05,2]
[420631852,1776379843181,-500.0,8.493e-05,2]
[420631853,1776379843190,-793.37,8.493e-05,2]
[420631854,1776379843199,-500.91489503,8.493e-05,2]
[420631855,1776379843208,-500.0,8.493e-05,2]
[420631856,1776379843217,-500.0,8.493e-05,2]
[420631857,1776379843227,-500.0,8.493e-05,2]
[420631858,1776379843236,-500.0,8.493e-05,2]
[420631859,1776379843245,-500.0,8.493e-05,2]
[420631860,1776379843255,-893.53,8.493e-05,2]
[420631861,1776379843264,-500.0,8.493e-05,2]
[420631862,1776379843274,-500.0,8.493e-05,2]
[420631863,1776379843283,-500.0,8.493e-05,2]
[420631864,1776379843292,-236.65015881,8.493e-05,2]
[420631865,1776379843301,-500.0,8.493e-05,2]
[420631866,1776379843311,-936.7,8.493e-05,2]
[420631867,1776379843320,-500.0,8.493e-05,2]
[420631868,1776379843329,-719.95,8.493e-05,2]
[420631869,1776379843339,-500.0,8.493e-05,2]
[420631870,1776379843348,-1550.92,8.493e-05,2]
[420631871,1776379843357,-1603.22,8.493e-05,2]
[420631872,1776379843367,-500.0,8.493e-05,2]
[420631873,1776379843376,-500.0,8.493e-05,2]
[420631874,1776379843385,-1074.79,8.493e-05,2]
[420631875,1776379843395,-500.0,8.493e-05,2]
[420631876,1776379843404,-809.01,8.493e-05,2]
[420631877,1776379843413,-2543.19,8.493e-05,2]
[420631878,1776379843422,-500.0,8.493e-05,2]
[420631879,1776379843432,-500.0,8.493e-05,2]
[420631880,1776379843441,-503.81202754,8.493e-05,2]
[420631881,1776379843450,-1787.22,8.493e-05,2]
[420631882,1776379843459,-500.0,8.493e-05,2]
[420631883,1776379843468,-500.0,8.493e-05,2]
[420631884,1776379843477,-507.63,8.493e-05,2]
[420631885,1776379843487,-500.0,8.493e-05,2]
[420631886,1776379843496,-500.0,8.493e-05,2]
[420631887,1776379843506,-500.0,8.493e-05,2]
[420631888,1776379843515,-500.0,8.493e-05,2]
[420631889,1776379843525,-500.0,8.493e-05,2]
[420631890,1776379843534,-500.0,8.493e-05,2]
[420631891,1776379843544,-539.21,8.493e-05,2]
[420631892,1776379843554,-505.81009847,8.493e-05,2]
[420631893,1776379843564,-500.0,8.493e-05,2]
[420631894,1776379843575,-500.0,8.493e-05,2]
[420631895,1776379843584,-500.0,8.493e-05,2]
[420631896,1776379843593,-1620.52,8.493e-05,2]
[420631897,1776379843604,-656.01,8.493e-05,2]
[420631898,1776379843614,-500.0,8.493e-05,2]
[420631899,1776379843624,-500.0,8.493e-05,2]
[420631900,1776379843633,-500.0,8.493e-05,2]
[420631901,1776379843643,-500.0,8.493e-05,2]
[420631902,1776379843654,-500.0,8.493e-05,2]
[420631903,1776379843665,-500.0,8.493e-05,2]
[420631904,1776379843674,-500.0,8.493e-05,2]
[420631905,1776379843685,-500.0,8.493e-05,2]
[420631906,1776379843696,-500.0,8.493e-05,2]
[420631907,1776379843707,-1701.43,8.493e-05,2]
[420631908,1776379843717,-500.0,8.493e-05,2]
[420631909,1776379843727,-500.0,8.493e-05,2]
[420631910,1776379843736,-500.0,8.493e-05,2]
[420631911,1776379843746,-304.15148977,8.493e-05,2]
[420631912,1776379843755,-510.70586202,8.493e-05,2]
[420631913,1776379843764,-500.0,8.493e-05,2]
[420631914,1776379843774,-500.79516122,8.493e-05,2]
[420631915,1776379843783,-500.0,8.493e-05,2]
[420631916,1776379843794,-500.0,8.493e-05,2]
[420631917,1776379843805,-500.0,8.493e-05,2]
[420631918,1776379843815,-500.0,8.493e-05,2]
[420631919,1776379843826,-500.0,8.493e-05,2]
[420631920,1776379843835,-500.0,8.493e-05,2]
[420631921,1776379843845,-2596.25,8.493e-05,2]
[420631922,1776379843855,-630.64,8.493e-05,2]
[420631923,1776379843864,-670.87,8.493e-05,2]
[420631924,1776379843874,-6535.98,8.493e-05,2]
[420631925,1776379843884,-500.0,8.493e-05,2]
[420631926,1776379843894,-581.05932271,8.493e-05,2]
[420631927,1776379843904,-1441.11,8.493e-05,2]
[420631928,1776379843913,-500.0,8.493e-05,2]
[420631929,1776379843923,-500.0,8.493e-05,2]
[420631930,1776379843932,-500.0,8.493e-05,2]
[420631931,1776379843942,-1717.31,8.493e-05,2]
[420631932,1776379843951,-566.30209985,8.493e-05,2]
[420631933,1776379843960,-500.0,8.493e-05,2]
[420631934,1776379843969,-500.0,8.493e-05,2]
[420631935,1776379843979,-6460.19,8.493e-05,2]
[420631936,1776379843989,-500.0,8.493e-05,2]
[420631937,1776379843999,-500.0,8.493e-05,2]
[420631938,1776379844009,-1128.86,8.493e-05,2]
[420631939,1776379844019,-500.0,8.493e-05,2]
[420631940,1776379844028,-500.0,8.493e-05,2]
[420631941,1776379844038,-897.63,8.493e-05,2]
[420631942,1776379844047,-6057.27,8.493e-05,2]
[420631943,1776379844057,-5681.95,8.493e-05,2]
[420631944,1776379844066,-500.0,8.493e-05,2]
[420631945,1776379844076,-500.0,8.493e-05,2]
[420631946,1776379844085,-1054.52,8.493e-05,2]
[420631947,1776379844096,-500.0,8.493e-05,2]
[420631948,1776379844107,-3140.75,8.493e-05,2]
[420631949,1776379844117,-2344.9,8.493e-05,2]
[420631950,1776379844128,-500.0,8.493e-05,2]
[420631951,1776379844139,-1726.65,8.493e-05,2]
[420631952,1776379844151,-1260.1,8.493e-05,2]
[420631953,1776379844161,-500.0,8.493e-05,2]
[420631954,1776379844170,-3731.78,8.493e-05,2]
[420631955,1776379844179,-500.0,8.493e-05,2]
[420631956,1776379844190,-500.0,8.493e-05,2]
[420631957,1776379844202,-500.0,8.493e-05,2]
[420631958,1776379844212,-500.0,8.493e-05,2]
[420631959,1776379844221,-1264.24,8.493e-05,2]
[420631960,1776379844230,-780.29,8.493e-05,2]
[420631961,1776379844239,-2395.79,8.493e-05,2]
[420631962,1776379844250,-500.0,8.493e-05,2]
[420631963,1776379844260,-500.0,8.493e-05,2]
[420631964,1776379844270,-500.0,8.493e-05,2]
[420631965,1776379844280,-500.0,8.493e-05,2]
[420631966,1776379844289,-500.0,8.493e-05,2]
[420631967,1776379844301,-1736.03,8.493e-05,2]
[420631968,1776379844310,-674.91,8.493e-05,2]
[420631969,1776379844320,-312.14963876,8.493e-05,2]
[420631970,1776379844329,-500.0,8.493e-05,2]
[420631971,1776379844338,-741.33,8.493e-05,2]
[420631972,1776379844349,-4872.5,8.493e-05,2]
[420631973,1776379844359,-500.0,8.493e-05,2]
[420631974,1776379844368,-500.0,8.493e-05,2]
[420631975,1776379844378,-500.0,8.493e-05,2]
[420631976,1776379844388,-500.0,8.493e-05,2]
[420631977,1776379844399,-500.0,8.493e-05,2]
[420631978,1776379844408,-5809.96,8.493e-05,2]
[420631979,1776379844418,-3178.98,8.493e-05,2]
[420631980,1776379844427,-2921.38,8.493e-05,2]
[420631981,1776379844437,-500.0,8.493e-05,2]
[420631982,1776379844447,-500.0,8.493e-05,2]
[420631983,1776379844458,-1109.48,8.493e-05,2]
[420631984,1776379844467,-582.02,8.493e-05,2]
[420631985,1776379844477,-500.0,8.493e-05,2]
[420631986,1776379844487,-6778.55,8.493e-05,2]
[420631987,1776379844496,-500.0,8.493e-05,2]
[420631988,1776379844506,-500.0,8.493e-05,2]
[420631989,1776379844516,-23515.02,8.493e-05,2]
[420631990,1776379844525,-500.0,8.493e-05,2]
[420631991,1776379844534,-805.01,8.493e-05,2]
[420631992,1776379844543,-981.28,8.493e-05,2]
[420631993,1776379844552,-4908.13,8.493e-05,2]
[420631994,1776379844561,-6786.81,8.493e-05,2]
[420631995,1776379844570,-1911.03,8.493e-05,2]
[420631996,1776379844579,-500.0,8.493e-05,2]
[420631997,1776379844588,-2017.96,8.493e-05,2]
[420631998,1776379844597,-1413.17,8.493e-05,2]
[420631999,1776379844607,-13094.77,8.493e-05,2]
[420632000,1776379844616,-500.0,8.493e-05,2]
[420632001,1776379844626,-500.0,8.493e-05,2]
[420632002,1776379844636,-2398.76,8.493e-05,2]
[420632003,1776379844646,-642.71,8.493e-05,2]
[420632004,1776379844655,-500.0,8.493e-05,2]
[420632005,1776379844668,-710.49,8.493e-05,2]
[420632006,1776379844681,-500.0,8.493e-05,2]
[420632007,1776379844690,-500.0,8.493e-05,2]
[420632008,1776379844702,-500.0,8.493e-05,2]
[420632009,1776379844712,-7538.86,8.493e-05,2]
[420632010,1776379844723,-606.0,8.493e-05,2]
[420632011,1776379844732,-620.21,8.493e-05,2]
[420632012,1776379844742,-552.89487883,8.493e-05,2]
[420632013,1776379844751,-7051.8,8.493e-05,2]
[420632014,1776379844763,-500.0,8.493e-05,2]
[420632015,1776379844772,-840.84,8.493e-05,2]
[420632016,1776379844782,-500.0,8.493e-05,2]
[420632017,1776379844791,-725.79,8.493e-05,2]
[420632018,1776379844801,-1458.06,8.493e-05,2]
[420632019,1776379844810,-500.0,8.493e-05,2]
[420632020,1776379844959,-791.0,8.5e-05,2]
[420632021,1776379844969,-155.0,8.547e-05,2]
[420632022,1776379844979,-151.0,8.566e-05,2]
[420632023,1776379844988,-648.0,8.566e-05,2]
[420632024,1776379844997,-151.0,8.566e-05,2]
[420632025,1776379845007,-648.0,8.566e-05,2]
[420632026,1776379845017,-151.0,8.566e-05,2]
[420632027,1776379845027,-648.0,8.566e-05,2]
[420632028,1776379845036,-151.0,8.566e-05,2]
[420632029,1776379845045,-347.41390026,8.566e-05,2]
[420632030,1776379845055,-648.0,8.566e-05,2]
[420632031,1776379845064,-151.0,8.566e-05,2]
[420632032,1776379845073,-648.0,8.566e-05,2]
[420632033,1776379845082,-151.0,8.566e-05,2]
[420632034,1776379845092,-648.0,8.566e-05,2]
[420632035,1776379845101,-151.0,8.566e-05,2]
[420632036,1776379845110,-648.0,8.566e-05,2]
[420632037,1776379845120,-151.0,8.566e-05,2]
[420632038,1776379845130,-648.0,8.566e-05,2]
[420632039,1776379845140,-155.00954543,8.566e-05,2]
[420632040,1776379845150,-648.0,8.566e-05,2]
[420632041,1776379845160,-648.0,8.566e-05,2]
[420632042,1776379845171,-648.0,8.566e-05,2]
[420632043,1776379845181,-648.0,8.566e-05,2]
[420632044,1776379845192,-648.0,8.566e-05,2]
[420632045,1776379845202,-648.0,8.566e-05,2]
[420632046,1776379845213,-648.0,8.566e-05,2]
[420632047,1776379845223,-176.52891142,8.566e-05,2]
[420632048,1776379845235,-500.0,8.605e-05,2]
[420632049,1776379845245,-150.8247446,8.701e-05,2]
[420632050,1776379845254,-335.2888744,8.701e-05,2]
[420632051,1776379845264,-155.0,8.711e-05,2]
[420632052,1776379845275,-500.0,8.712e-05,2]
[420632053,1776379845285,-262.31007143,8.712e-05,2]
[420632054,1776379845294,-500.0,8.728e-05,2]
[420632055,1776379845305,-500.0,8.728e-05,2]
[420632056,1776379845317,-187.65233645,8.736e-05,2]
[420632057,1776379845327,-500.0,8.737e-05,2]
[420632058,1776379845338,-500.0,8.737e-05,2]
[420632059,1776379845347,-791.03954602,8.741e-05,2]
[420632060,1776379845356,-1000.0,8.741e-05,2]
[420632061,1776379845366,-1000.0,8.741e-05,2]
[420632062,1776379845375,-1000.0,8.741e-05,2]
[420632063,1776379845384,-665.349,8.762e-05,2]
[420632064,1776379845394,-1231.5582,8.767e-05,2]
[420632065,1776379845403,-500.0,8.767e-05,2]
[420632066,1776379845412,-500.0,8.767e-05,2]
[420632067,1776379845421,-500.0,8.767e-05,2]
[420632068,1776379845431,-519.8240142,8.767e-05,2]
[420632069,1776379845440,-500.0,8.767e-05,2]
[420632070,1776379845449,-500.0,8.767e-05,2]
[420632071,1776379845458,-500.0,8.767e-05,2]
[420632072,1776379845468,-775.34,8.767e-05,2]
[420632073,1776379845477,-500.0,8.767e-05,2]
[420632074,1776379845486,-500.0,8.767e-05,2]
[420632075,1776379845495,-500.0,8.767e-05,2]
[420632076,1776379845505,-848.68,8.767e-05,2]
[420632077,1776379845514,-500.0,8.767e-05,2]
[420632078,1776379845523,-500.0,8.767e-05,2]
[420632079,1776379845532,-500.0,8.767e-05,2]
[420632080,1776379845544,-500.0,8.767e-05,2]
[420632081,1776379845553,-500.0,8.767e-05,2]
[420632082,1776379845563,-500.0,8.767e-05,2]
[420632083,1776379845573,-500.0,8.767e-05,2]
[420632084,1776379845583,-1014.43,8.767e-05,2]
[420632085,1776379845593,-500.0,8.767e-05,2]
[420632086,1776379845602,-793.37,8.767e-05,2]
[420632087,1776379845613,-500.0,8.767e-05,2]
[420632089,1776379845623,-566.12553661,8.767e-05,2]
[420632090,1776379845632,-500.0,8.767e-05,2]
[420632091,1776379845642,-409.28258539,8.767e-05,2]
[420632092,1776379845651,-500.0,8.767e-05,2]
[420632093,1776379845662,-893.53,8.767e-05,2]
[420632094,1776379845671,-500.0,8.767e-05,2]
[420632095,1776379845681,-500.0,8.767e-05,2]
[420632096,1776379845690,-500.0,8.767e-05,2]
[420632097,1776379845699,-500.0,8.767e-05,2]
[420632098,1776379845708,-936.7,8.767e-05,2]
[420632099,1776379845717,-500.0,8.767e-05,2]
[420632100,1776379845726,-719.95,8.767e-05,2]
[420632101,1776379845735,-500.0,8.767e-05,2]
[420632102,1776379845745,-1550.92,8.767e-05,2]
[420632103,1776379845754,-1603.22,8.767e-05,2]
[420632104,1776379845763,-500.0,8.767e-05,2]
[420632105,1776379845773,-500.0,8.767e-05,2]
[420632106,1776379845782,-1074.79,8.767e-05,2]
[420632107,1776379845797,-500.0,8.767e-05,2]
[420632108,1776379845807,-809.01,8.767e-05,2]
[420632109,1776379845818,-2543.19,8.767e-05,2]
[420632110,1776379845828,-500.0,8.767e-05,2]
[420632112,1776379845838,-500.0,8.767e-05,2]
[420632114,1776379845848,-1787.22,8.767e-05,2]
[420632116,1776379845857,-500.0,8.767e-05,2]
[420632117,1776379845867,-500.0,8.767e-05,2]
[420632120,1776379845877,-507.63,8.767e-05,2]
[420632122,1776379845887,-500.0,8.767e-05,2]
[420632124,1776379845897,-500.0,8.767e-05,2]
[420632125,1776379845906,-500.0,8.767e-05,2]
[420632127,1776379845915,-500.0,8.767e-05,2]
[420632129,1776379845925,-500.0,8.767e-05,2]
[420632131,1776379845934,-500.0,8.767e-05,2]
[420632133,1776379845943,-539.21,8.767e-05,2]